[Event "Elite Hotels Open 2023"]
[Site "Elite Stadshotellet, Kungsgatan 6, Vaxjo, Sweden"]
[Date "2023.02.12"]
[Round "8.11"]
[White "Eriksson, Christian Altenburg"]
[Black "Johansson, Gunnar"]
[Result "1/2-1/2"]
[TimeControl "15 minutes + 5 seconds per move from move one (Round 1 - 4) / 90 minutes + 30 seconds per move from move one (Round 5 - 8)"]
[WhiteFideId "1412159"]
[BlackFideId "1703501"]
[WhiteElo "2104"]
[BlackElo "2260"]

1. e4 {[%clk 01:30:57]} {[%emt 00:00:02]} c5 {[%clk 01:30:55]} {[%emt
00:00:06]} 2. c3 {[%clk 01:31:18]} {[%emt 00:00:08]} Nf6 {[%clk 01:31:18]}
{[%emt 00:00:07]} 3. e5 {[%clk 01:31:40]} {[%emt 00:00:09]} Nd5 {[%clk
01:31:42]} {[%emt 00:00:05]} 4. Nf3 {[%clk 01:32:05]} {[%emt 00:00:05]} d6
{[%clk 01:31:52]} {[%emt 00:00:21]} 5. Bb5+ {[%clk 01:32:17]} {[%emt 00:00:18]}
Bd7 {[%clk 01:28:50]} {[%emt 00:03:32]} 6. Bc4 {[%clk 01:32:28]} {[%emt
00:00:18]} e6 {[%clk 01:26:44]} {[%emt 00:02:37]} 7. d4 {[%clk 01:32:09]}
{[%emt 00:00:49]} Bc6 {[%clk 01:19:40]} {[%emt 00:07:34]} 8. O-O {[%clk
01:31:11]} {[%emt 00:01:28]} Nd7 {[%clk 01:18:54]} {[%emt 00:01:16]} 9. Qe2
{[%clk 01:28:54]} {[%emt 00:02:47]} cxd4 {[%clk 01:10:48]} {[%emt 00:08:36]} 10.
cxd4 {[%clk 01:27:53]} {[%emt 00:01:30]} Be7 {[%clk 00:59:57]} {[%emt
00:11:21]} 11. Re1 {[%clk 01:19:43]} {[%emt 00:08:40]} Rc8 {[%clk 00:54:38]}
{[%emt 00:05:50]} 12. Bxd5 {[%clk 01:12:27]} {[%emt 00:07:45]} Bxd5 {[%clk
00:54:29]} {[%emt 00:00:40]} 13. Nc3 {[%clk 01:12:46]} {[%emt 00:00:11]} Nb6
{[%clk 00:53:10]} {[%emt 00:01:48]} 14. Bf4 {[%clk 01:07:55]} {[%emt 00:05:21]}
O-O {[%clk 00:50:10]} {[%emt 00:03:30]} 15. Rac1 {[%clk 01:04:13]} {[%emt
00:04:13]} Qd7 {[%clk 00:45:01]} {[%emt 00:05:39]} 16. h4 {[%clk 01:00:22]}
{[%emt 00:04:20]} Rfd8 {[%clk 00:42:06]} {[%emt 00:03:25]} 17. Ng5 {[%clk
00:57:54]} {[%emt 00:02:59]} dxe5 {[%clk 00:37:15]} {[%emt 00:05:21]} 18. dxe5
{[%clk 00:55:59]} {[%emt 00:02:24]} h6 {[%clk 00:31:45]} {[%emt 00:06:01]} 19.
Nge4 {[%clk 00:53:06]} {[%emt 00:03:22]} Bxe4 {[%clk 00:29:09]} {[%emt
00:03:06]} 20. Nxe4 {[%clk 00:52:01]} {[%emt 00:01:35]} Nd5 {[%clk 00:25:14]}
{[%emt 00:04:25]} 21. Qg4 {[%clk 00:49:44]} {[%emt 00:02:46]} h5 {[%clk
00:20:32]} {[%emt 00:05:14]} 22. Qg3 {[%clk 00:48:14]} {[%emt 00:01:59]} Rxc1
{[%clk 00:19:48]} {[%emt 00:01:14]} 23. Bxc1 {[%clk 00:45:58]} {[%emt
00:02:47]} Rc8 {[%clk 00:12:39]} {[%emt 00:07:40]} 24. Bg5 {[%clk 00:44:23]}
{[%emt 00:02:03]} Kf8 {[%clk 00:08:31]} {[%emt 00:04:38]} 25. Qf3 {[%clk
00:39:51]} {[%emt 00:05:02]} Bxg5 {[%clk 00:07:57]} {[%emt 00:01:04]} 26. hxg5
{[%clk 00:37:43]} {[%emt 00:02:38]} g6 {[%clk 00:06:52]} {[%emt 00:01:36]} 27.
Nf6 {[%clk 00:36:10]} {[%emt 00:02:02]} Qb5 {[%clk 00:04:15]} {[%emt 00:03:07]}
28. Rd1 {[%clk 00:30:44]} {[%emt 00:05:56]} Nxf6 {[%clk 00:02:13]} {[%emt
00:02:32]} 29. Qxf6 {[%clk 00:27:55]} {[%emt 00:03:19]} Kg8 {[%clk 00:02:41]}
{[%emt 00:00:02]} 30. b3 {[%clk 00:27:18]} {[%emt 00:01:08]} a5 {[%clk
00:02:48]} {[%emt 00:00:23]} 31. Rd4 {[%clk 00:25:55]} {[%emt 00:01:52]} b6
{[%clk 00:03:15]} {[%emt 00:00:04]} 32. Kh2 {[%clk 00:22:30]} {[%emt 00:03:55]}
Qc6 {[%clk 00:02:25]} {[%emt 00:01:21]} 33. Rd6 {[%clk 00:17:46]} {[%emt
00:05:13]} Qc2 {[%clk 00:01:34]} {[%emt 00:01:22]} 34. Rd8+ {[%clk 00:12:33]}
{[%emt 00:05:43]} Rxd8 {[%clk 00:01:58]} {[%emt 00:00:06]} 35. Qxd8+ {[%clk
00:12:58]} {[%emt 00:00:06]} Kg7 {[%clk 00:02:18]} {[%emt 00:00:09]} 36. Qf6+
{[%clk 00:12:45]} {[%emt 00:00:42]} 1/2-1/2

[Event "Elite Hotels Open 2023"]
[Site "Elite Stadshotellet, Kungsgatan 6, Vaxjo, Sweden"]
[Date "2023.02.12"]
[Round "8.12"]
[White "Burwick, Malte"]
[Black "Karlsson, Jorgen"]
[Result "1-0"]
[TimeControl "15 minutes + 5 seconds per move from move one (Round 1 - 4) / 90 minutes + 30 seconds per move from move one (Round 5 - 8)"]
[WhiteFideId "1702475"]
[BlackFideId "1711679"]
[WhiteElo "2219"]
[BlackElo "1987"]

1. d4 {[%clk 01:30:02]} {[%emt 00:00:57]} g6 {[%clk 01:30:55]} {[%emt
00:00:05]} 2. Nf3 {[%clk 01:30:02]} {[%emt 00:00:29]} d6 {[%clk 01:30:55]}
{[%emt 00:00:31]} 3. e4 {[%clk 01:24:29]} {[%emt 00:06:03]} Bg7 {[%clk
01:30:58]} {[%emt 00:00:27]} 4. Bc4 {[%clk 01:24:34]} {[%emt 00:00:25]} e6
{[%clk 01:31:13]} {[%emt 00:00:15]} 5. O-O {[%clk 01:24:23]} {[%emt 00:00:41]}
Ne7 {[%clk 01:31:31]} {[%emt 00:00:11]} 6. a4 {[%clk 01:24:27]} {[%emt
00:00:28]} O-O {[%clk 01:30:49]} {[%emt 00:01:12]} 7. Bb3 {[%clk 01:18:13]}
{[%emt 00:06:44]} h6 {[%clk 01:24:14]} {[%emt 00:07:04]} 8. a5 {[%clk
01:13:06]} {[%emt 00:05:38]} b5 {[%clk 01:15:14]} {[%emt 00:09:29]} 9. axb6
{[%clk 01:12:33]} {[%emt 00:01:03]} cxb6 {[%clk 01:15:37]} {[%emt 00:00:07]} 10.
Re1 {[%clk 01:04:04]} {[%emt 00:08:58]} Bb7 {[%clk 01:12:38]} {[%emt 00:03:29]}
11. h4 {[%clk 00:50:03]} {[%emt 00:14:32]} Nd7 {[%clk 01:10:00]} {[%emt
00:03:09]} 12. Nc3 {[%clk 00:47:26]} {[%emt 00:03:06]} a6 {[%clk 01:09:50]}
{[%emt 00:00:41]} 13. Bf4 {[%clk 00:44:40]} {[%emt 00:03:15]} Qc7 {[%clk
01:09:08]} {[%emt 00:01:12]} 14. Qd2 {[%clk 00:35:21]} {[%emt 00:09:48]} Kh7
{[%clk 01:06:48]} {[%emt 00:02:50]} 15. e5 {[%clk 00:35:31]} {[%emt 00:00:21]}
d5 {[%clk 00:59:01]} {[%emt 00:08:17]} 16. Ne2 {[%clk 00:31:32]} {[%emt
00:04:28]} b5 {[%clk 00:58:59]} {[%emt 00:00:31]} 17. g4 {[%clk 00:24:46]}
{[%emt 00:07:16]} Nb6 {[%clk 00:58:38]} {[%emt 00:00:52]} 18. Kg2 {[%clk
00:23:51]} {[%emt 00:01:25]} Nc4 {[%clk 00:58:38]} {[%emt 00:00:30]} 19. Qc1
{[%clk 00:24:15]} {[%emt 00:00:06]} b4 {[%clk 00:53:55]} {[%emt 00:05:14]} 20.
c3 {[%clk 00:24:34]} {[%emt 00:00:11]} a5 {[%clk 00:54:04]} {[%emt 00:00:21]}
21. Rh1 {[%clk 00:18:58]} {[%emt 00:06:05]} Rh8 {[%clk 00:41:24]} {[%emt
00:13:10]} 22. Bc2 {[%clk 00:17:13]} {[%emt 00:02:15]} Kg8 {[%clk 00:38:20]}
{[%emt 00:03:34]} 23. cxb4 {[%clk 00:12:27]} {[%emt 00:05:17]} axb4 {[%clk
00:38:04]} {[%emt 00:00:46]} 24. Rxa8+ {[%clk 00:12:50]} {[%emt 00:00:06]} Bxa8
{[%clk 00:38:29]} {[%emt 00:00:06]} 25. h5 {[%clk 00:12:31]} {[%emt 00:00:48]}
Na5 {[%clk 00:29:17]} {[%emt 00:09:42]} 26. Bd2 {[%clk 00:11:50]} {[%emt
00:01:11]} Qc4 {[%clk 00:25:34]} {[%emt 00:04:13]} 27. Qd1 {[%clk 00:11:10]}
{[%emt 00:01:10]} g5 {[%clk 00:23:03]} {[%emt 00:03:01]} 28. Nc1 {[%clk
00:10:05]} {[%emt 00:01:35]} Qb5 {[%clk 00:22:55]} {[%emt 00:00:39]} 29. b3
{[%clk 00:09:31]} {[%emt 00:01:04]} Nec6 {[%clk 00:21:48]} {[%emt 00:01:36]} 30.
Bd3 {[%clk 00:08:08]} {[%emt 00:01:53]} Qb6 {[%clk 00:22:12]} {[%emt 00:00:06]}
31. Be3 {[%clk 00:06:48]} {[%emt 00:01:51]} Bf8 {[%clk 00:22:34]} {[%emt
00:00:08]} 32. Bb1 {[%clk 00:04:48]} {[%emt 00:02:29]} Na7 {[%clk 00:19:33]}
{[%emt 00:03:32]} 33. Nxg5 {[%clk 00:04:08]} {[%emt 00:01:10]} hxg5 {[%clk
00:16:49]} {[%emt 00:03:14]} 34. Bxg5 {[%clk 00:04:36]} {[%emt 00:00:02]} Nb5
{[%clk 00:17:00]} {[%emt 00:00:19]} 35. h6 {[%clk 00:04:16]} {[%emt 00:00:50]}
Bxh6 {[%clk 00:15:52]} {[%emt 00:01:39]} 36. Qc2 {[%clk 00:02:32]} {[%emt
00:02:14]} Nc6 {[%clk 00:12:36]} {[%emt 00:03:45]} 37. Rxh6 {[%clk 00:02:55]}
{[%emt 00:00:07]} 1-0

[Event "Elite Hotels Open 2023"]
[Site "Elite Stadshotellet, Kungsgatan 6, Vaxjo, Sweden"]
[Date "2023.02.12"]
[Round "8.13"]
[White "Mattsson, Michael"]
[Black "Sevastianov, Andrii"]
[Result "1/2-1/2"]
[TimeControl "15 minutes + 5 seconds per move from move one (Round 1 - 4) / 90 minutes + 30 seconds per move from move one (Round 5 - 8)"]
[WhiteFideId "1708961"]
[BlackFideId "1730240"]
[WhiteElo "2048"]
[BlackElo "2160"]

1. e4 {[%clk 01:30:57]} {[%emt 00:00:02]} c6 {[%clk 01:30:48]} {[%emt
00:00:11]} 2. d4 {[%clk 01:31:03]} {[%emt 00:00:24]} d5 {[%clk 01:31:08]}
{[%emt 00:00:10]} 3. Nc3 {[%clk 01:31:10]} {[%emt 00:00:23]} dxe4 {[%clk
01:31:24]} {[%emt 00:00:15]} 4. Nxe4 {[%clk 01:31:34]} {[%emt 00:00:07]} Nf6
{[%clk 01:31:39]} {[%emt 00:00:14]} 5. Nxf6+ {[%clk 01:31:59]} {[%emt
00:00:05]} exf6 {[%clk 01:31:55]} {[%emt 00:00:13]} 6. c3 {[%clk 01:31:56]}
{[%emt 00:00:34]} Bd6 {[%clk 01:32:07]} {[%emt 00:00:18]} 7. Bd3 {[%clk
01:32:23]} {[%emt 00:00:04]} Na6 {[%clk 01:32:08]} {[%emt 00:00:28]} 8. Qc2
{[%clk 01:30:30]} {[%emt 00:02:23]} h5 {[%clk 01:31:39]} {[%emt 00:00:58]} 9.
Ne2 {[%clk 01:28:47]} {[%emt 00:02:13]} Qc7 {[%clk 01:27:40]} {[%emt 00:04:29]}
10. Be3 {[%clk 01:22:16]} {[%emt 00:07:01]} Be6 {[%clk 01:27:45]} {[%emt
00:00:23]} 11. h4 {[%clk 01:17:52]} {[%emt 00:04:55]} g6 {[%clk 01:21:52]}
{[%emt 00:06:24]} 12. a3 {[%clk 01:13:18]} {[%emt 00:05:05]} Kf8 {[%clk
01:19:39]} {[%emt 00:02:42]} 13. c4 {[%clk 01:09:59]} {[%emt 00:03:50]} Qd7
{[%clk 01:18:16]} {[%emt 00:01:52]} 14. O-O {[%clk 01:05:39]} {[%emt 00:04:50]}
Nc7 {[%clk 01:17:46]} {[%emt 00:01:00]} 15. Rfd1 {[%clk 01:04:52]} {[%emt
00:01:17]} Kg7 {[%clk 01:13:48]} {[%emt 00:04:28]} 16. Nf4 {[%clk 01:01:09]}
{[%emt 00:04:13]} Rac8 {[%clk 01:12:18]} {[%emt 00:01:59]} 17. Be4 {[%clk
00:57:12]} {[%emt 00:04:28]} Rhe8 {[%clk 01:06:12]} {[%emt 00:06:35]} 18. b3
{[%clk 00:52:28]} {[%emt 00:05:15]} Bg4 {[%clk 01:03:14]} {[%emt 00:03:27]} 19.
Rd2 {[%clk 00:49:02]} {[%emt 00:03:57]} f5 {[%clk 00:59:00]} {[%emt 00:04:43]}
20. Bf3 {[%clk 00:45:53]} {[%emt 00:03:40]} Bxf3 {[%clk 00:58:53]} {[%emt
00:00:37]} 21. gxf3 {[%clk 00:46:11]} {[%emt 00:00:12]} Qe7 {[%clk 00:50:39]}
{[%emt 00:08:43]} 22. Ng2 {[%clk 00:45:27]} {[%emt 00:01:14]} Ne6 {[%clk
00:49:16]} {[%emt 00:01:54]} 23. Re2 {[%clk 00:43:27]} {[%emt 00:02:31]} Qf6
{[%clk 00:45:16]} {[%emt 00:04:30]} 24. Rd1 {[%clk 00:36:47]} {[%emt 00:07:09]}
a6 {[%clk 00:38:06]} {[%emt 00:07:41]} 25. Bc1 {[%clk 00:34:46]} {[%emt
00:02:30]} Kh7 {[%clk 00:37:41]} {[%emt 00:00:54]} 26. Qd2 {[%clk 00:28:13]}
{[%emt 00:07:04]} Rcd8 {[%clk 00:27:51]} {[%emt 00:10:20]} 27. Qh6+ {[%clk
00:22:40]} {[%emt 00:06:03]} Kg8 {[%clk 00:28:13]} {[%emt 00:00:07]} 28. Bb2
{[%clk 00:18:45]} {[%emt 00:04:26]} Nc7 {[%clk 00:22:13]} {[%emt 00:06:30]} 29.
Rde1 {[%clk 00:15:36]} {[%emt 00:03:39]} Qg7 {[%clk 00:22:03]} {[%emt
00:00:40]} 30. Qxg7+ {[%clk 00:13:39]} {[%emt 00:02:27]} Kxg7 {[%clk 00:22:23]}
{[%emt 00:00:09]} 31. c5 {[%clk 00:13:16]} {[%emt 00:00:55]} Rxe2 {[%clk
00:21:21]} {[%emt 00:01:31]} 32. Rxe2 {[%clk 00:13:41]} {[%emt 00:00:06]} Bf8
{[%clk 00:21:26]} {[%emt 00:00:25]} 33. d5+ {[%clk 00:14:00]} {[%emt 00:00:10]}
f6 {[%clk 00:20:54]} {[%emt 00:01:02]} 34. d6 {[%clk 00:13:48]} {[%emt
00:00:41]} Nd5 {[%clk 00:21:18]} {[%emt 00:00:07]} 35. Ne3 {[%clk 00:09:23]}
{[%emt 00:04:56]} Nf4 {[%clk 00:21:40]} {[%emt 00:00:07]} 36. Rd2 {[%clk
00:09:41]} {[%emt 00:00:11]} Kf7 {[%clk 00:21:50]} {[%emt 00:00:21]} 37. Kf1
{[%clk 00:08:54]} {[%emt 00:01:17]} Bh6 {[%clk 00:21:15]} {[%emt 00:01:05]} 38.
Rd1 {[%clk 00:07:55]} {[%emt 00:01:29]} Ne6 {[%clk 00:21:33]} {[%emt 00:00:12]}
39. b4 {[%clk 00:08:03]} {[%emt 00:00:22]} Bxe3 {[%clk 00:21:09]} {[%emt
00:00:53]} 40. fxe3 {[%clk 00:08:24]} {[%emt 00:00:10]} a5 {[%clk 00:21:28]}
{[%emt 00:00:11]} 41. Bd4 {[%clk 00:07:26]} {[%emt 00:01:29]} axb4 {[%clk
00:21:44]} {[%emt 00:00:13]} 42. axb4 {[%clk 00:07:42]} {[%emt 00:00:14]} Ra8
{[%clk 00:21:49]} {[%emt 00:00:23]} 43. Rb1 {[%clk 00:06:43]} {[%emt 00:01:30]}
Nf8 {[%clk 00:20:16]} {[%emt 00:02:03]} 44. b5 {[%clk 00:06:47]} {[%emt
00:00:27]} Ke6 {[%clk 00:19:46]} {[%emt 00:00:59]} 45. bxc6 {[%clk 00:06:10]}
{[%emt 00:01:07]} bxc6 {[%clk 00:20:10]} {[%emt 00:00:06]} 46. Rb7 {[%clk
00:04:15]} {[%emt 00:02:25]} Kd5 {[%clk 00:14:34]} {[%emt 00:06:06]} 47. Rg7
{[%clk 00:01:12]} {[%emt 00:03:32]} Ne6 {[%clk 00:11:00]} {[%emt 00:04:04]} 48.
Rxg6 {[%clk 00:01:35]} {[%emt 00:00:07]} Nxd4 {[%clk 00:11:23]} {[%emt
00:00:08]} 49. exd4 {[%clk 00:02:03]} {[%emt 00:00:03]} Kxd4 {[%clk 00:11:44]}
{[%emt 00:00:08]} 50. Rxf6 {[%clk 00:02:20]} {[%emt 00:00:12]} Kxc5 {[%clk
00:11:49]} {[%emt 00:00:25]} 51. d7 {[%clk 00:02:41]} {[%emt 00:00:09]} Rd8
{[%clk 00:09:00]} {[%emt 00:03:19]} 52. Rxf5+ {[%clk 00:03:08]} {[%emt
00:00:04]} Kd6 {[%clk 00:07:13]} {[%emt 00:02:17]} 53. Rxh5 {[%clk 00:03:15]}
{[%emt 00:00:22]} Rxd7 {[%clk 00:07:35]} {[%emt 00:00:08]} 54. Rg5 {[%clk
00:01:49]} {[%emt 00:01:56]} c5 {[%clk 00:07:32]} {[%emt 00:00:34]} 55. h5
{[%clk 00:01:23]} {[%emt 00:00:55]} c4 {[%clk 00:07:39]} {[%emt 00:00:24]} 56.
h6 {[%clk 00:01:19]} {[%emt 00:00:34]} Rh7 {[%clk 00:07:29]} {[%emt 00:00:39]}
57. Rh5 {[%clk 00:01:17]} {[%emt 00:00:34]} Ke7 {[%clk 00:06:00]} {[%emt
00:01:59]} 58. f4 {[%clk 00:01:11]} {[%emt 00:00:35]} Kf7 {[%clk 00:05:13]}
{[%emt 00:01:17]} 59. f5 {[%clk 00:01:32]} {[%emt 00:00:10]} Kg8 {[%clk
00:05:22]} {[%emt 00:00:20]} 60. Rg5+ {[%clk 00:01:21]} {[%emt 00:00:42]} Kh8
{[%clk 00:04:25]} {[%emt 00:01:26]} 61. Rg6 {[%clk 00:01:36]} {[%emt 00:00:16]}
Rf7 {[%clk 00:04:41]} {[%emt 00:00:12]} 62. f6 {[%clk 00:01:42]} {[%emt
00:00:26]} Rf8 {[%clk 00:04:52]} {[%emt 00:00:17]} 63. Ke2 {[%clk 00:01:35]}
{[%emt 00:00:38]} Kh7 {[%clk 00:05:11]} {[%emt 00:00:10]} 64. Rg4 {[%clk
00:01:49]} {[%emt 00:00:17]} Rxf6 {[%emt 00:00:18]} 1/2-1/2

[Event "Elite Hotels Open 2023"]
[Site "Elite Stadshotellet, Kungsgatan 6, Vaxjo, Sweden"]
[Date "2023.02.12"]
[Round "8.14"]
[White "Ernst, Thomas"]
[Black "Mashhadi, Peyman"]
[Result "1-0"]
[TimeControl "15 minutes + 5 seconds per move from move one (Round 1 - 4) / 90 minutes + 30 seconds per move from move one (Round 5 - 8)"]
[WhiteTitle "GM"]
[WhiteFideId "1700065"]
[BlackFideId "1768581"]
[WhiteElo "2286"]
[BlackElo "2018"]

1. e4 {[%clk 01:30:56]} {[%emt 00:00:03]} e6 {[%clk 01:30:38]} {[%emt
00:00:22]} 2. d4 {[%clk 01:31:19]} {[%emt 00:00:07]} d5 {[%clk 01:31:02]}
{[%emt 00:00:05]} 3. Nc3 {[%clk 01:31:43]} {[%emt 00:00:07]} Nf6 {[%clk
01:31:11]} {[%emt 00:00:21]} 4. Bg5 {[%clk 01:32:02]} {[%emt 00:00:11]} Be7
{[%clk 01:31:14]} {[%emt 00:00:26]} 5. e5 {[%clk 01:32:22]} {[%emt 00:00:10]}
Nfd7 {[%clk 01:31:36]} {[%emt 00:00:08]} 6. Bxe7 {[%clk 01:32:14]} {[%emt
00:00:39]} Qxe7 {[%clk 01:31:34]} {[%emt 00:00:31]} 7. f4 {[%clk 01:32:27]}
{[%emt 00:00:17]} a6 {[%clk 01:27:31]} {[%emt 00:04:35]} 8. Nf3 {[%clk
01:30:29]} {[%emt 00:02:27]} c5 {[%clk 01:25:51]} {[%emt 00:02:10]} 9. dxc5
{[%clk 01:30:42]} {[%emt 00:00:18]} Nc6 {[%clk 01:24:52]} {[%emt 00:01:29]} 10.
Bd3 {[%clk 01:29:52]} {[%emt 00:01:19]} Qxc5 {[%clk 01:20:35]} {[%emt
00:04:47]} 11. Qd2 {[%clk 01:29:25]} {[%emt 00:00:56]} b5 {[%clk 01:18:04]}
{[%emt 00:03:02]} 12. a4 {[%clk 01:22:26]} {[%emt 00:07:29]} b4 {[%clk
01:16:08]} {[%emt 00:02:27]} 13. Ne2 {[%clk 01:22:45]} {[%emt 00:00:09]} Bb7
{[%clk 01:09:36]} {[%emt 00:07:03]} 14. Ng3 {[%clk 01:13:07]} {[%emt 00:10:08]}
Rc8 {[%clk 01:00:07]} {[%emt 00:09:59]} 15. Qf2 {[%clk 01:09:41]} {[%emt
00:03:56]} Na5 {[%clk 00:49:16]} {[%emt 00:11:21]} 16. Nd4 {[%clk 01:06:26]}
{[%emt 00:03:43]} Nc4 {[%clk 00:45:41]} {[%emt 00:04:06]} 17. b3 {[%clk
01:06:34]} {[%emt 00:00:23]} Nb2 {[%clk 00:44:12]} {[%emt 00:01:59]} 18. Nge2
{[%clk 01:02:55]} {[%emt 00:04:07]} Qe7 {[%clk 00:41:00]} {[%emt 00:03:43]} 19.
O-O {[%clk 01:00:45]} {[%emt 00:02:41]} O-O {[%clk 00:38:56]} {[%emt 00:02:33]}
20. Qe3 {[%clk 00:59:24]} {[%emt 00:01:50]} Nxd3 {[%clk 00:37:30]} {[%emt
00:01:58]} 21. cxd3 {[%clk 00:59:31]} {[%emt 00:00:23]} g6 {[%clk 00:34:30]}
{[%emt 00:03:29]} 22. Rac1 {[%clk 00:58:39]} {[%emt 00:01:21]} Nc5 {[%clk
00:33:45]} {[%emt 00:01:15]} 23. Rc2 {[%clk 00:58:15]} {[%emt 00:00:52]} Rc7
{[%clk 00:32:04]} {[%emt 00:02:14]} 24. Rfc1 {[%clk 00:53:28]} {[%emt
00:05:17]} Rfc8 {[%clk 00:32:07]} {[%emt 00:00:27]} 25. a5 {[%clk 00:53:17]}
{[%emt 00:00:40]} Ba8 {[%clk 00:26:58]} {[%emt 00:05:40]} 26. Qd2 {[%clk
00:42:45]} {[%emt 00:11:00]} Qd8 {[%clk 00:26:09]} {[%emt 00:01:21]} 27. Ng3
{[%clk 00:40:10]} {[%emt 00:03:04]} Nb7 {[%clk 00:18:51]} {[%emt 00:07:49]} 28.
Qxb4 {[%clk 00:36:03]} {[%emt 00:04:37]} Rxc2 {[%clk 00:18:25]} {[%emt
00:00:56]} 29. Rxc2 {[%clk 00:36:28]} {[%emt 00:00:06]} Rxc2 {[%clk 00:18:38]}
{[%emt 00:00:17]} 30. Nxc2 {[%clk 00:36:51]} {[%emt 00:00:08]} Qc7 {[%clk
00:16:48]} {[%emt 00:02:19]} 31. Nd4 {[%clk 00:34:43]} {[%emt 00:02:37]} Nxa5
{[%clk 00:13:09]} {[%emt 00:04:09]} 32. Nge2 {[%clk 00:34:41]} {[%emt
00:00:32]} Kg7 {[%clk 00:11:52]} {[%emt 00:01:48]} 33. Kf2 {[%clk 00:32:49]}
{[%emt 00:02:21]} Nb7 {[%clk 00:10:35]} {[%emt 00:01:48]} 34. Ke3 {[%clk
00:32:13]} {[%emt 00:01:06]} h6 {[%clk 00:08:43]} {[%emt 00:02:22]} 35. Qa4
{[%clk 00:31:15]} {[%emt 00:01:26]} Nc5 {[%clk 00:07:50]} {[%emt 00:01:26]} 36.
Qe8 {[%clk 00:29:21]} {[%emt 00:02:22]} Bb7 {[%clk 00:06:25]} {[%emt 00:01:56]}
37. b4 {[%clk 00:26:19]} {[%emt 00:03:31]} Nb3 {[%clk 00:06:30]} {[%emt
00:00:26]} 38. Qxe6 {[%clk 00:24:57]} {[%emt 00:01:52]} Nxd4 {[%clk 00:05:53]}
{[%emt 00:01:08]} 39. Qf6+ {[%clk 00:24:40]} {[%emt 00:00:46]} Kg8 {[%clk
00:06:03]} {[%emt 00:00:19]} 40. Kxd4 {[%clk 00:16:05]} {[%emt 00:09:05]} Qc2
{[%clk 00:06:11]} {[%emt 00:00:23]} 41. Ke3 {[%clk 00:16:16]} {[%emt 00:00:17]}
d4+ {[%clk 00:06:14]} {[%emt 00:00:29]} 42. Nxd4 {[%clk 00:16:24]} {[%emt
00:00:22]} Qxg2 {[%clk 00:05:01]} {[%emt 00:01:43]} 43. e6 {[%clk 00:11:53]}
{[%emt 00:05:00]} fxe6 {[%clk 00:04:04]} {[%emt 00:01:28]} 44. Qxe6+ {[%clk
00:11:01]} {[%emt 00:01:22]} Kh7 {[%clk 00:03:59]} {[%emt 00:00:34]} 45. Qd7+
{[%clk 00:05:05]} {[%emt 00:06:26]} Kh8 {[%clk 00:04:10]} {[%emt 00:00:19]} 46.
Ne6 {[%clk 00:05:25]} {[%emt 00:00:09]} Qf3+ {[%clk 00:03:22]} {[%emt
00:01:19]} 47. Kd4 {[%clk 00:05:01]} {[%emt 00:00:52]} Qf2+ {[%clk 00:03:21]}
{[%emt 00:00:34]} 48. Ke5 {[%clk 00:04:21]} {[%emt 00:01:07]} Qe1+ {[%clk
00:02:17]} {[%emt 00:01:37]} 49. Kf6 {[%clk 00:04:27]} {[%emt 00:00:22]} Qa1+
{[%clk 00:00:41]} {[%emt 00:02:06]} 50. d4 {[%clk 00:04:22]} {[%emt 00:00:35]}
1-0

[Event "Elite Hotels Open 2023"]
[Site "Elite Stadshotellet, Kungsgatan 6, Vaxjo, Sweden"]
[Date "2023.02.12"]
[Round "8.16"]
[White "Eriksson, Kristian"]
[Black "Lindborg, Patrik"]
[Result "1/2-1/2"]
[TimeControl "15 minutes + 5 seconds per move from move one (Round 1 - 4) / 90 minutes + 30 seconds per move from move one (Round 5 - 8)"]
[WhiteFideId "1705172"]
[BlackFideId "1707507"]
[WhiteElo "2053"]
[BlackElo "2184"]

1. e4 {[%clk 01:30:55]} {[%emt 00:00:04]} c5 {[%clk 01:30:57]} {[%emt
00:00:04]} 2. Nc3 {[%clk 01:31:08]} {[%emt 00:00:16]} e6 {[%clk 01:29:04]}
{[%emt 00:02:24]} 3. Nf3 {[%clk 01:31:17]} {[%emt 00:00:21]} Nc6 {[%clk
01:29:20]} {[%emt 00:00:14]} 4. Bb5 {[%clk 01:31:02]} {[%emt 00:00:44]} Qc7
{[%clk 01:25:26]} {[%emt 00:04:26]} 5. O-O {[%clk 01:29:32]} {[%emt 00:02:00]}
Nf6 {[%clk 01:18:46]} {[%emt 00:07:09]} 6. Re1 {[%clk 01:22:21]} {[%emt
00:07:40]} Ng4 {[%clk 01:08:32]} {[%emt 00:10:44]} 7. Bxc6 {[%clk 01:16:15]}
{[%emt 00:06:36]} bxc6 {[%clk 01:08:33]} {[%emt 00:00:29]} 8. e5 {[%clk
01:09:46]} {[%emt 00:06:59]} Be7 {[%clk 01:01:34]} {[%emt 00:07:29]} 9. d3
{[%clk 01:02:42]} {[%emt 00:07:33]} h5 {[%clk 00:56:20]} {[%emt 00:05:45]} 10.
h3 {[%clk 01:00:24]} {[%emt 00:02:48]} Nh6 {[%clk 00:56:41]} {[%emt 00:00:08]}
11. Ne4 {[%clk 00:59:14]} {[%emt 00:01:40]} Nf5 {[%clk 00:55:14]} {[%emt
00:01:58]} 12. Bf4 {[%clk 00:53:39]} {[%emt 00:06:04]} a5 {[%clk 00:44:04]}
{[%emt 00:11:41]} 13. Qd2 {[%clk 00:48:39]} {[%emt 00:05:29]} Nd4 {[%clk
00:41:41]} {[%emt 00:02:53]} 14. Nxd4 {[%clk 00:40:48]} {[%emt 00:08:21]} cxd4
{[%clk 00:42:09]} {[%emt 00:00:03]} 15. c3 {[%clk 00:32:03]} {[%emt 00:09:14]}
dxc3 {[%clk 00:39:46]} {[%emt 00:02:54]} 1/2-1/2